bitfinex/quotes_BTCUSD_20240728
["timestamp","ask_amount","ask_price","bid_price","bid_amount"]
[1722155112325,2.31116436,67604.0,67603.0,0.00574592]
[1722155112847,2.24938222,67604.0,67603.0,0.00574592]
[1722155113867,2.24938359,67604.0,67603.0,0.00574592]
[1722155114220,1.94971159,67604.0,67603.0,0.00574592]
[1722155114368,1.46288002,67604.0,67603.0,0.15174592]
[1722155115755,1.48588002,67604.0,67603.0,0.15174592]
[1722155116141,1.48690328,67604.0,67603.0,0.15174592]
[1722155116875,1.48681646,67604.0,67603.0,0.15174592]
[1722155117089,1.58658661,67604.0,67603.0,0.15174592]
[1722155119411,0.29879246,67604.0,67603.0,0.15174592]
[1722155119616,0.31456923,67604.0,67603.0,0.15174592]
[1722155119815,0.20365761,67604.0,67603.0,0.15174592]
[1722155120015,0.14127889,67604.0,67603.0,0.15174592]
[1722155120217,0.29164105,67604.0,67603.0,0.15174592]
[1722155120421,0.17491327,67604.0,67603.0,0.15174592]
[1722155120621,0.17491219,67604.0,67603.0,0.15174592]
[1722155120892,0.18891219,67604.0,67603.0,0.15174592]
[1722155121006,0.18891219,67604.0,67603.0,0.27008292]
[1722155121218,0.05518916,67604.0,67603.0,0.74343292]
[1722155121442,0.03203226,67604.0,67603.0,0.74343292]
[1722155121662,0.08869372,67609.0,67607.0,0.0612]
[1722155121663,0.04434686,67608.0,67607.0,0.0612]
[1722155121863,0.17022358,67608.0,67607.0,0.1379]
[1722155122064,0.17022358,67608.0,67607.0,0.1239]
[1722155122279,0.22429941,67608.0,67607.0,0.1239]
[1722155122433,0.06162355,67608.0,67607.0,0.1239]
[1722155122628,0.17129449,67608.0,67607.0,0.952213]
[1722155122866,0.06162355,67608.0,67607.0,0.715552]
[1722155123074,0.0015542,67612.0,67611.0,0.0824]
[1722155123267,0.16266386,67615.0,67611.0,0.0824]
[1722155123268,0.0015542,67614.0,67611.0,0.0824]
[1722155123473,0.06129023,67613.0,67611.0,0.0824]
[1722155123872,0.00116228,67612.0,67611.0,0.0824]
[1722155124095,0.06129023,67612.0,67611.0,0.0824]
[1722155124539,0.06229023,67612.0,67611.0,0.0824]
[1722155125109,0.06229023,67612.0,67611.0,0.1441]
[1722155125313,0.06429023,67612.0,67611.0,0.1441]
[1722155125526,0.55851566,67612.0,67611.0,0.1441]
[1722155125712,0.73103002,67612.0,67611.0,0.1441]
[1722155125888,0.79420093,67612.0,67611.0,0.1441]
[1722155126092,0.838506,67612.0,67611.0,0.1441]
[1722155126537,0.7329107,67612.0,67611.0,0.1441]
[1722155126747,0.79424765,67612.0,67611.0,0.1441]
[1722155127079,1.10398574,67612.0,67611.0,0.1441]
[1722155127442,0.99656806,67612.0,67611.0,0.1441]
[1722155127643,1.05943599,67612.0,67611.0,0.1441]
[1722155127958,0.99656806,67612.0,67611.0,0.1441]
[1722155128575,1.05965024,67612.0,67611.0,0.1441]
[1722155128825,1.10389701,67612.0,67611.0,0.1441]
[1722155129363,1.05965024,67612.0,67611.0,0.1441]
[1722155129928,1.10392561,67612.0,67611.0,0.1441]
[1722155130143,1.05970211,67612.0,67611.0,0.1441]
[1722155130399,1.05969104,67612.0,67611.0,0.1441]
[1722155130835,1.05935539,67612.0,67611.0,0.1441]
[1722155131057,1.10357889,67612.0,67611.0,0.1441]
[1722155131267,1.05935539,67612.0,67611.0,0.1441]
[1722155131492,1.10357889,67612.0,67611.0,0.1441]
[1722155131687,1.05935539,67612.0,67611.0,0.1441]
[1722155133097,1.0595496,67612.0,67611.0,0.1441]
[1722155133683,1.08271166,67612.0,67611.0,0.1441]
[1722155134521,1.52435087,67612.0,67611.0,0.1441]
[1722155134723,1.43682047,67612.0,67611.0,0.1441]
[1722155135656,1.43482047,67612.0,67611.0,0.1441]
[1722155136064,1.44882047,67612.0,67611.0,0.1441]
[1722155136431,1.44870292,67612.0,67611.0,0.1441]
[1722155136841,1.46070292,67612.0,67611.0,0.1441]
[1722155137241,1.55922782,67612.0,67611.0,0.1441]
[1722155137665,1.46070292,67612.0,67611.0,0.1441]
[1722155138797,1.46070292,67612.0,67611.0,0.0824]
[1722155139200,0.59168,67604.0,67603.0,0.00574592]
[1722155139579,1.24195442,67604.0,67603.0,0.00574592]
[1722155139797,1.30827036,67604.0,67603.0,0.00574592]
[1722155140008,1.26860553,67604.0,67603.0,0.00574592]
[1722155140210,1.42473927,67604.0,67603.0,0.00574592]
[1722155140404,1.42473715,67604.0,67603.0,0.00574592]
[1722155140680,1.45384687,67604.0,67603.0,0.00574592]
[1722155142094,1.45399605,67604.0,67603.0,0.00574592]
[1722155142818,1.2977311,67604.0,67603.0,0.00574592]
[1722155143041,1.45410381,67604.0,67603.0,0.00574592]
[1722155143265,1.34354785,67604.0,67603.0,0.00574592]
[1722155143499,1.36654785,67604.0,67603.0,0.00574592]
[1722155145155,1.4005091,67604.0,67603.0,0.00574592]
[1722155145818,1.36654785,67604.0,67603.0,0.00574592]
[1722155146027,1.79701717,67604.0,67603.0,0.00574592]
[1722155146235,1.79704794,67604.0,67603.0,0.00574592]
[1722155146439,1.66434516,67604.0,67603.0,0.00574592]
[1722155146644,1.74384516,67604.0,67603.0,0.00574592]
[1722155147357,1.89410473,67604.0,67603.0,0.00574592]
[1722155148261,1.99410473,67604.0,67603.0,0.00574592]
[1722155149243,1.83870671,67604.0,67603.0,0.00574592]
[1722155149475,1.99514665,67604.0,67603.0,0.00574592]
[1722155149735,1.93331825,67604.0,67603.0,0.00574592]
[1722155149960,1.99514513,67604.0,67603.0,0.00574592]
[1722155150441,1.85384673,67604.0,67603.0,0.00574592]
[1722155152278,1.99616279,67604.0,67603.0,0.00574592]
[1722155152525,2.00716279,67604.0,67603.0,0.00574592]
[1722155152751,1.86749006,67604.0,67603.0,0.00574592]
[1722155153044,2.00583819,67604.0,67603.0,0.00574592]
[1722155153276,1.86049006,67604.0,67603.0,0.00374592]
[1722155153502,2.0238324,67604.0,67603.0,0.00374592]
[1722155153732,1.87449006,67604.0,67603.0,0.00374592]
[1722155154445,2.17409735,67604.0,67603.0,0.00374592]
[1722155154690,2.17409735,67604.0,67603.0,0.00364592]
[1722155155168,2.02474963,67604.0,67603.0,0.00364592]
[1722155155398,2.17410649,67604.0,67603.0,0.00364592]
[1722155155642,2.02474963,67604.0,67603.0,0.00364592]
[1722155155868,1.86866788,67604.0,67603.0,0.00364592]
[1722155156095,2.02492127,67604.0,67603.0,0.00164592]
[1722155156789,2.17429284,67604.0,67603.0,0.00164592]
[1722155157004,2.02492127,67604.0,67603.0,0.00164592]
[1722155158140,1.8746617,67604.0,67603.0,0.00164592]
[1722155159255,1.71840831,67604.0,67603.0,0.00164592]
[1722155159487,1.87501431,67604.0,67603.0,0.00164592]
[1722155159726,1.71840831,67604.0,67603.0,0.00164592]
[1722155159943,1.8750149,67604.0,67603.0,0.00164592]
[1722155160670,2.02439827,67604.0,67603.0,0.00164592]
[1722155161578,1.86778806,67604.0,67603.0,0.00164592]
[1722155161855,2.02427498,67604.0,67603.0,0.00164592]
[1722155162062,1.64600298,67604.0,67603.0,0.00164592]
[1722155162262,1.49662323,67604.0,67603.0,0.00164592]
[1722155162793,1.49662323,67604.0,67603.0,0.14474592]
[1722155163020,1.62938976,67604.0,67603.0,0.14474592]
[1722155163188,1.49662323,67604.0,67603.0,0.14474592]
[1722155164264,1.49662323,67604.0,67603.0,0.1431]
[1722155164742,1.49611342,67604.0,67603.0,0.1431]
[1722155165408,1.62887864,67604.0,67603.0,0.1431]
[1722155165635,1.49611342,67604.0,67603.0,0.1431]
[1722155167627,1.62888739,67604.0,67603.0,0.1431]
[1722155167874,1.56726965,67604.0,67603.0,0.1431]
[1722155168119,1.49604506,67604.0,67603.0,0.1431]
[1722155168431,1.62884475,67604.0,67603.0,0.1431]
[1722155168644,1.49604506,67604.0,67603.0,0.1431]
[1722155170075,0.828376,67602.0,67601.0,0.002]
[1722155170279,1.19352899,67602.0,67601.0,0.002]
[1722155170499,1.22238884,67602.0,67601.0,0.002]
[1722155171131,1.06648009,67602.0,67601.0,0.002]
[1722155171429,1.2364923,67602.0,67601.0,0.002]
[1722155171553,1.09448009,67602.0,67601.0,0.002]
[1722155171764,1.25049249,67602.0,67601.0,0.002]
[1722155171965,1.22749249,67602.0,67601.0,0.002]
[1722155172240,1.2242748,67602.0,67601.0,0.002]
[1722155173181,1.2242748,67602.0,67601.0,0.1451]
[1722155173716,1.3015748,67602.0,67601.0,0.002]
[1722155174252,1.37354375,67602.0,67601.0,0.002]
[1722155174535,1.45421035,67602.0,67601.0,0.002]
[1722155174800,1.63294042,67602.0,67601.0,0.002]
[1722155177309,1.62327147,67602.0,67601.0,0.002]
[1722155177550,1.69997147,67602.0,67601.0,0.002]
[1722155177738,1.5442414,67602.0,67601.0,0.002]
[1722155177960,1.5442414,67602.0,67601.0,0.002924]
[1722155177961,1.69974466,67602.0,67601.0,0.002924]
[1722155178125,1.85000423,67602.0,67601.0,0.002924]
[1722155178717,1.85000423,67602.0,67601.0,0.000924]
[1722155178718,1.69974466,67602.0,67601.0,0.000924]
[1722155179059,1.84943978,67602.0,67601.0,0.000924]
[1722155179265,1.69974466,67602.0,67601.0,0.000924]
[1722155179454,1.84943978,67602.0,67601.0,0.000924]
[1722155180226,1.69974466,67602.0,67601.0,0.000924]
[1722155180781,1.93642366,67602.0,67601.0,0.000924]
[1722155181000,1.84215822,67602.0,67601.0,0.000924]
[1722155181193,2.15465689,67602.0,67601.0,0.000924]
[1722155181397,1.99936612,67602.0,67601.0,0.000924]
[1722155181622,1.93636227,67602.0,67601.0,0.000924]
[1722155181936,2.08662184,67602.0,67601.0,0.000924]
[1722155182353,2.07262184,67602.0,67601.0,0.000924]
[1722155182558,2.05862184,67602.0,67601.0,0.000924]
[1722155182756,2.07262184,67602.0,67601.0,0.000924]
[1722155182902,2.08662184,67602.0,67601.0,0.000924]
[1722155183305,2.07262184,67602.0,67601.0,0.000924]
[1722155183526,2.07262184,67602.0,67599.0,1e-06]
[1722155183527,1.301773,67600.0,67599.0,1e-06]
[1722155183857,2.14776124,67600.0,67599.0,1e-06]
[1722155184275,1.99231937,67600.0,67599.0,1e-06]
[1722155184445,2.1481045,67600.0,67599.0,1e-06]
[1722155184848,2.1621045,67600.0,67599.0,1e-06]
[1722155186068,2.1761045,67600.0,67599.0,1e-06]
[1722155187629,2.17694167,67600.0,67599.0,1e-06]
[1722155190964,2.17660687,67600.0,67599.0,1e-06]
[1722155191175,2.17660687,67600.0,67589.0,0.007653]
[1722155191176,1.444065,67590.0,67589.0,0.007653]
[1722155191415,1.8836791,67590.0,67589.0,0.007653]
[1722155191616,1.91240131,67590.0,67589.0,0.007653]
[1722155192397,1.92240131,67590.0,67589.0,0.007653]
[1722155192937,1.93140131,67590.0,67589.0,0.007653]
[1722155193271,1.92240131,67590.0,67589.0,0.007613]
[1722155193724,1.93640131,67590.0,67589.0,0.007613]
[1722155193917,1.98635131,67590.0,67589.0,0.007613]
[1722155194101,2.00070537,67590.0,67589.0,0.007613]
[1722155194303,2.06919557,67590.0,67589.0,0.007613]
[1722155194684,2.00070537,67590.0,67589.0,0.007613]
[1722155195826,1.065258,67589.0,67581.0,0.083]
[1722155196022,1.66465016,67589.0,67581.0,0.083]
[1722155196369,1.69337024,67589.0,67581.0,0.002]
[1722155196777,1.84362981,67589.0,67581.0,0.002]
[1722155197501,1.84354633,67589.0,67581.0,0.002]
[1722155197694,1.85754633,67589.0,67581.0,0.002]
[1722155198096,1.87154633,67589.0,67581.0,0.002]
[1722155198962,1.72128676,67589.0,67581.0,0.002]
[1722155200721,1.71092863,67589.0,67581.0,0.002]
[1722155200907,1.86735321,67589.0,67581.0,0.002]
[1722155201231,1.86736355,67589.0,67581.0,0.002]
[1722155201768,1.85491775,67589.0,67581.0,0.002]
[1722155202106,2.01762312,67589.0,67581.0,0.002]
[1722155202335,2.00362312,67589.0,67581.0,0.002]
[1722155202466,1.14267,67582.0,67581.0,0.002]
[1722155202682,1.53382865,67582.0,67581.0,0.002]
[1722155203723,1.54682865,67582.0,67581.0,0.002]
[1722155203929,1.54587412,67582.0,67581.0,0.002]
[1722155204440,1.55987412,67582.0,67581.0,0.002]
[1722155204632,1.55987412,67582.0,67581.0,0.1464]
[1722155204880,1.48257412,67582.0,67581.0,0.1464]
[1722155205096,1.4560565,67582.0,67581.0,0.1464]
[1722155205267,1.32312512,67582.0,67581.0,0.1464]
[1722155206558,1.4560563,67582.0,67581.0,0.1464]
[1722155206760,1.32312512,67582.0,67581.0,0.1464]
[1722155206969,1.4560563,67582.0,67581.0,0.1464]
[1722155207594,1.32312512,67582.0,67581.0,0.1464]
[1722155209860,1.45605606,67582.0,67581.0,0.1464]
[1722155210446,1.45588767,67582.0,67581.0,0.1464]
[1722155210679,1.45589842,67582.0,67581.0,0.1464]
[1722155210884,1.45591267,67582.0,67581.0,0.1464]
[1722155211174,0.828695,67576.0,67575.0,0.05853649]
[1722155211314,1.06703266,67576.0,67575.0,0.05853649]
[1722155211517,1.18437216,67576.0,67575.0,0.009163]
[1722155211914,1.09573342,67576.0,67575.0,0.009163]
[1722155212339,1.10373342,67576.0,67575.0,0.009163]
[1722155212503,1.18103342,67576.0,67575.0,0.009163]
[1722155212697,1.18703342,67576.0,67575.0,0.009163]
[1722155212992,1.29783185,67576.0,67575.0,0.009163]
[1722155213552,1.03172231,67576.0,67575.0,0.009163]
[1722155213726,1.18735026,67576.0,67575.0,0.009163]
[1722155214546,1.44712026,67576.0,67575.0,0.009163]
[1722155214747,1.58952026,67576.0,67575.0,0.009163]
[1722155215308,1.59868326,67576.0,67575.0,0.009163]
[1722155215463,1.59268326,67576.0,67575.0,0.009163]
[1722155215663,1.58468326,67576.0,67575.0,0.009163]
[1722155215873,1.59768326,67576.0,67575.0,0.009163]
[1722155216242,1.59868326,67576.0,67575.0,0.009163]
[1722155216378,1.58468326,67576.0,67575.0,0.009163]
[1722155216776,1.45705531,67576.0,67575.0,0.009163]
[1722155216957,1.6131236,67576.0,67575.0,0.009163]
[1722155219154,1.76338317,67576.0,67575.0,0.009163]
[1722155220537,1.60731488,67576.0,67575.0,0.009163]
[1722155220719,1.76355563,67576.0,67575.0,0.009163]
[1722155220920,1.91331713,67576.0,67575.0,0.009163]
[1722155221321,1.86355563,67576.0,67575.0,0.009163]
[1722155222369,1.70731488,67576.0,67575.0,0.009163]
[1722155222565,1.86368434,67576.0,67575.0,0.009163]
[1722155223968,1.065541,67571.0,67565.0,0.1319]
[1722155224173,1.40523701,67571.0,67565.0,0.1319]
[1722155224370,1.43389353,67571.0,67565.0,0.1319]
[1722155225510,1.43389353,67571.0,67570.0,0.089163]
[1722155225728,0.96343707,67571.0,67570.0,0.142063]
[1722155225938,0.88361616,67571.0,67570.0,0.142063]
[1722155226752,0.88359129,67571.0,67570.0,0.142063]
[1722155228924,0.48986307,67571.0,67570.0,0.142063]
[1722155229156,0.55168556,67571.0,67570.0,0.142063]
[1722155229735,0.53968556,67571.0,67570.0,0.142063]
[1722155230207,0.63633349,67571.0,67570.0,0.142063]
[1722155230403,0.54168556,67571.0,67570.0,0.142063]
[1722155230758,0.63633445,67571.0,67570.0,0.142063]
[1722155230971,0.54168556,67571.0,67570.0,0.142063]
[1722155231163,0.53068556,67571.0,67570.0,0.142063]
[1722155231365,0.62638963,67571.0,67570.0,0.142063]
[1722155231567,0.53168556,67571.0,67570.0,0.142063]
[1722155231947,0.62641787,67571.0,67570.0,0.142063]
[1722155232148,0.46986307,67571.0,67570.0,0.142063]
[1722155232351,0.53181098,67571.0,67570.0,0.142063]
[1722155233953,0.62662297,67571.0,67570.0,0.142063]
[1722155235390,0.62672402,67571.0,67570.0,0.142063]
[1722155238833,0.62671663,67571.0,67570.0,0.142063]
[1722155239504,0.355186,67570.0,67563.0,0.12757]
[1722155239660,0.58910077,67570.0,67563.0,0.12757]
[1722155239860,0.61930108,67570.0,67563.0,0.12757]
[1722155240269,0.59613902,67570.0,67563.0,0.12757]
[1722155241011,0.59713902,67570.0,67563.0,0.12757]
[1722155241211,0.62031249,67570.0,67563.0,0.12757]
[1722155241621,0.62031182,67570.0,67563.0,0.009163]
[1722155241968,0.76678994,67570.0,67563.0,0.009163]
[1722155242296,1.11464874,67570.0,67563.0,0.009163]
[1722155242484,0.94145207,67570.0,67563.0,0.009163]
[1722155242726,1.11465607,67570.0,67563.0,0.009163]
[1722155243555,1.00358408,67570.0,67563.0,0.009163]
[1722155245355,1.14881978,67570.0,67563.0,0.009163]
[1722155247397,1.24406054,67570.0,67563.0,0.009163]
[1722155247526,1.14881978,67570.0,67563.0,0.009163]
[1722155247730,1.2455417,67570.0,67563.0,0.009163]
[1722155248571,1.1817095,67570.0,67563.0,0.009163]
[1722155248762,1.2420389,67570.0,67563.0,0.009163]
[1722155251941,1.08408309,67570.0,67563.0,0.009163]
[1722155252122,1.2419971,67570.0,67563.0,0.009163]
[1722155252421,1.08408309,67570.0,67563.0,0.009163]
[1722155252621,1.2419971,67570.0,67563.0,0.009163]
[1722155255210,1.08408309,67570.0,67563.0,0.009163]
[1722155255438,1.2418428,67570.0,67563.0,0.009163]
[1722155256977,1.24315626,67570.0,67563.0,0.009163]
[1722155257152,1.2418428,67570.0,67563.0,0.009163]
[1722155257398,1.24288883,67570.0,67563.0,0.009163]
[1722155257578,1.2418428,67570.0,67563.0,0.009163]
[1722155257820,1.24282186,67570.0,67563.0,0.009163]
[1722155258026,1.2418428,67570.0,67563.0,0.009163]
[1722155258435,1.24280112,67570.0,67563.0,0.009163]
[1722155258634,1.08408309,67570.0,67563.0,0.009163]
[1722155258874,1.24294702,67570.0,67563.0,0.009163]
[1722155259078,1.24195787,67570.0,67563.0,0.009163]
[1722155261857,1.27691323,67570.0,67563.0,0.009163]
[1722155262108,1.27681709,67570.0,67563.0,0.009163]
[1722155262332,1.11903845,67570.0,67563.0,0.009163]
[1722155262589,1.27682785,67570.0,67563.0,0.009163]
[1722155265218,1.21435066,67570.0,67563.0,0.009163]
[1722155265448,1.27690126,67570.0,67563.0,0.009163]
[1722155265674,1.2419459,67570.0,67563.0,0.009163]
[1722155267859,0.59203,67564.0,67563.0,0.009163]
[1722155268078,0.83066179,67564.0,67563.0,0.009163]
[1722155268312,0.85929533,67564.0,67563.0,0.009163]
[1722155268547,0.70143252,67564.0,67563.0,0.009163]
[1722155268782,0.85930256,67564.0,67563.0,0.009163]
[1722155269292,0.86030256,67564.0,67563.0,0.009163]
[1722155269774,0.86130256,67564.0,67563.0,0.010163]
[1722155271123,0.85930256,67564.0,67563.0,0.009163]
[1722155271357,0.86130256,67564.0,67563.0,0.009163]
[1722155271525,0.86230256,67564.0,67563.0,0.009163]
[1722155271707,1.31951456,67564.0,67563.0,0.009163]
[1722155271925,1.31947917,67564.0,67563.0,0.009163]
[1722155272330,1.22419374,67564.0,67563.0,0.009163]
[1722155272575,1.3195048,67564.0,67563.0,0.009163]
[1722155274312,1.31950442,67564.0,67563.0,0.009163]
[1722155275131,1.31956262,67564.0,67563.0,0.009163]
[1722155280458,1.45283739,67564.0,67563.0,0.009163]
[1722155281118,1.31946957,67564.0,67563.0,0.009163]
[1722155281327,1.45277723,67564.0,67563.0,0.009163]
[1722155281722,1.45279297,67564.0,67563.0,0.009163]
[1722155283845,1.45079297,67564.0,67563.0,0.009163]
[1722155284051,1.45579297,67564.0,67563.0,0.009163]
[1722155284251,1.36054854,67564.0,67563.0,0.009163]
[1722155284368,1.3225412,67564.0,67563.0,0.009163]
[1722155284782,1.3215412,67564.0,67563.0,0.009163]
[1722155284989,1.3255412,67564.0,67563.0,0.009163]
[1722155285887,1.3215412,67564.0,67563.0,0.009163]
[1722155286511,1.3255412,67564.0,67563.0,0.009163]
[1722155286957,1.32497016,67564.0,67563.0,0.009163]
[1722155287513,1.56178216,67564.0,67563.0,0.009163]
[1722155289275,1.71204173,67564.0,67563.0,0.009163]
[1722155289469,1.73504173,67564.0,67563.0,0.009163]
[1722155290639,1.73602425,67564.0,67563.0,0.009163]
[1722155291272,1.73602424,67564.0,67563.0,0.009163]
[1722155292844,1.58578534,67564.0,67563.0,0.009163]
[1722155294193,1.68578534,67564.0,67563.0,0.009163]
[1722155294418,1.92259734,67564.0,67563.0,0.009163]
[1722155294947,1.91859734,67564.0,67563.0,0.009163]
[1722155295411,1.92859734,67564.0,67563.0,0.009163]
[1722155295574,2.07885691,67564.0,67563.0,0.009163]
[1722155295758,2.06385691,67564.0,67563.0,0.009163]
[1722155295954,2.07785691,67564.0,67563.0,0.009163]
[1722155296158,2.09185691,67564.0,67563.0,0.009163]
[1722155296388,2.07785691,67564.0,67563.0,0.009163]
[1722155297144,2.09185691,67564.0,67563.0,0.009163]
[1722155297285,2.09267526,67564.0,67563.0,0.009163]
[1722155297483,1.94241569,67564.0,67563.0,0.009163]
[1722155297722,1.95641569,67564.0,67563.0,0.009163]
[1722155298146,1.94241569,67564.0,67563.0,0.009163]
[1722155298548,1.95641569,67564.0,67563.0,0.009163]
[1722155300564,1.95653616,67564.0,67563.0,0.009163]
[1722155301030,1.95651367,67564.0,67563.0,0.009163]
[1722155302034,1.79671815,67564.0,67563.0,0.009163]
[1722155302234,1.95647661,67564.0,67563.0,0.009163]
[1722155302882,1.95643913,67564.0,67563.0,0.009163]
[1722155303905,1.95648735,67564.0,67563.0,0.009163]
[1722155305964,1.99769639,67564.0,67563.0,0.009163]
[1722155307271,1.90143521,67564.0,67563.0,0.009163]
[1722155307478,1.99766485,67564.0,67563.0,0.009163]
[1722155308092,1.71964381,67564.0,67563.0,0.009163]
[1722155308634,1.86944445,67564.0,67563.0,0.009163]
[1722155308794,1.71964381,67564.0,67563.0,0.009163]
[1722155310448,1.55990615,67564.0,67563.0,0.009163]
[1722155310610,1.71983247,67564.0,67563.0,0.009163]
[1722155310822,1.55990615,67564.0,67563.0,0.009163]
[1722155311022,1.81366357,67564.0,67563.0,0.009163]
[1722155313852,1.6536538,67564.0,67563.0,0.009163]
[1722155314003,1.81368543,67564.0,67563.0,0.009163]
[1722155317050,1.6536538,67564.0,67563.0,0.009163]
[1722155317249,1.81381241,67564.0,67563.0,0.009163]
[1722155320370,1.81374034,67564.0,67563.0,0.009163]
[1722155320774,1.7500511,67564.0,67563.0,0.009163]
[1722155320931,1.81823308,67564.0,67563.0,0.009163]
[1722155323644,1.81827565,67564.0,67563.0,0.009163]
[1722155326239,1.729023,67564.0,67563.0,0.009163]
[1722155327005,1.729018,67564.0,67563.0,0.009163]
[1722155330170,1.56889615,67564.0,67563.0,0.009163]
[1722155330325,1.72861191,67564.0,67563.0,0.009163]
[1722155330729,1.7286098,67564.0,67563.0,0.009163]
[1722155330926,1.87886937,67564.0,67563.0,0.009163]
[1722155333510,1.87775753,67564.0,67563.0,0.009163]
[1722155335000,2.09662519,67564.0,67563.0,0.009163]
[1722155336776,1.87765305,67564.0,67563.0,0.009163]
[1722155337026,2.33337691,67564.0,67563.0,0.009163]
[1722155337242,1.87765305,67564.0,67563.0,0.009163]
[1722155337946,1.86365305,67564.0,67563.0,0.009163]
[1722155338175,1.84965305,67564.0,67563.0,0.009163]
[1722155338408,1.86365305,67564.0,67563.0,0.009163]
[1722155338914,1.71339348,67564.0,67563.0,0.009163]
[1722155340115,1.71359092,67564.0,67563.0,0.009163]
[1722155340355,1.55489615,67564.0,67563.0,0.009163]
[1722155340595,1.71358763,67564.0,67563.0,0.009163]
[1722155341504,1.95039963,67564.0,67563.0,0.009163]
[1722155341754,2.1006592,67564.0,67563.0,0.009163]
[1722155341978,1.94792755,67564.0,67563.0,0.009163]
[1722155342217,1.94804925,67564.0,67563.0,0.009163]
[1722155342942,1.69723725,67564.0,67563.0,0.009163]
[1722155343185,1.71123725,67564.0,67563.0,0.009163]
[1722155343426,1.94804925,67564.0,67563.0,0.009163]
[1722155343648,1.93404925,67564.0,67563.0,0.009163]
[1722155343869,1.71123725,67564.0,67563.0,0.009163]
[1722155345243,1.94804925,67564.0,67563.0,0.009163]
[1722155345451,1.94782967,67564.0,67563.0,0.009163]
[1722155348682,1.78923607,67564.0,67563.0,0.009163]
[1722155349002,1.94790286,67564.0,67563.0,0.009163]
[1722155351421,2.09816243,67564.0,67563.0,0.009163]
[1722155352164,2.09822965,67564.0,67563.0,0.009163]
[1722155352647,2.09823485,67564.0,67563.0,0.009163]
[1722155352903,1.94797528,67564.0,67563.0,0.009163]
[1722155355457,1.94800774,67564.0,67563.0,0.009163]
[1722155356163,1.71119574,67564.0,67563.0,0.009163]
[1722155356796,1.94800774,67564.0,67563.0,0.009163]
[1722155358729,1.94841506,67564.0,67563.0,0.009163]
[1722155360604,1.78923607,67564.0,67563.0,0.009163]
[1722155360833,1.94842458,67564.0,67563.0,0.009163]
[1722155361081,2.09868415,67564.0,67563.0,0.009163]
[1722155362032,1.94840521,67564.0,67563.0,0.009163]
[1722155362303,1.94839299,67564.0,67563.0,0.009163]
[1722155362558,1.94839278,67564.0,67563.0,0.009163]
[1722155365288,1.94855779,67564.0,67563.0,0.009163]
[1722155368699,1.94840001,67564.0,67563.0,0.009163]
[1722155369435,1.71158801,67564.0,67563.0,0.009163]
[1722155369614,1.86184758,67564.0,67563.0,0.009163]
[1722155371241,2.09865958,67564.0,67563.0,0.009163]
[1722155371999,1.93949564,67564.0,67563.0,0.009163]
[1722155372156,2.09871376,67564.0,67563.0,0.009163]
[1722155372407,1.78923607,67564.0,67563.0,0.009163]
[1722155372732,1.94856564,67564.0,67563.0,0.009163]
[1722155375435,1.94855524,67564.0,67563.0,0.009163]
[1722155378830,1.78923607,67564.0,67563.0,0.009163]
[1722155379034,2.08480201,67564.0,67563.0,0.009163]
[1722155379276,2.07080201,67564.0,67563.0,0.009163]
[1722155379476,2.08480201,67564.0,67563.0,0.009163]
[1722155380456,2.09880201,67564.0,67563.0,0.009163]
[1722155382069,1.93949564,67564.0,67563.0,0.009163]
[1722155382276,2.09880816,67564.0,67563.0,0.009163]
[1722155382476,1.93949564,67564.0,67563.0,0.009163]
[1722155382684,2.09889125,67564.0,67563.0,0.009163]
[1722155385441,1.93949564,67564.0,67563.0,0.009163]
[1722155385616,2.09908405,67564.0,67563.0,0.009163]
[1722155388806,2.09907521,67564.0,67563.0,0.009163]
[1722155390062,1.63470364,67564.0,67563.0,0.009163]
[1722155390280,1.71200364,67564.0,67563.0,0.009163]
[1722155390707,1.94881564,67564.0,67563.0,0.009163]
[1722155392128,1.95030626,67564.0,67563.0,0.009163]
[1722155392559,1.95030543,67564.0,67563.0,0.009163]
[1722155393093,2.100565,67564.0,67563.0,0.009163]
[1722155393710,1.95030543,67564.0,67563.0,0.009163]
[1722155394353,1.78923607,67564.0,67563.0,0.009163]
[1722155394557,1.9485764,67564.0,67563.0,0.009163]
[1722155395250,1.9345764,67564.0,67563.0,0.009163]
[1722155395451,1.9205764,67564.0,67563.0,0.009163]
[1722155395657,1.9345764,67564.0,67563.0,0.009163]
[1722155395820,1.9345764,67564.0,67557.0,0.009163]
[1722155395821,0.236833,67558.0,67557.0,0.009163]
[1722155396027,1.45986519,67558.0,67557.0,0.009163]
[1722155396235,1.50639961,67558.0,67557.0,0.009163]
[1722155396449,1.98006561,67558.0,67557.0,0.009163]
[1722155397053,1.99406561,67558.0,67557.0,0.009163]
[1722155397685,2.21274554,67558.0,67557.0,0.009163]
[1722155397884,2.13761575,67558.0,67557.0,0.009163]
[1722155398243,1.91893582,67558.0,67557.0,0.009163]
[1722155398445,1.95196266,67558.0,67557.0,0.009163]
[1722155398650,1.95323772,67558.0,67557.0,0.009163]
[1722155398852,2.17189531,67558.0,67557.0,0.009163]
[1722155399166,1.95323772,67558.0,67557.0,0.009163]
[1722155400500,1.48357788,67558.0,67557.0,0.009163]
[1722155400775,1.56087788,67558.0,67557.0,0.009163]
[1722155401161,1.6373198,67558.0,67557.0,0.009163]
[1722155401791,1.6362249,67558.0,67557.0,0.009163]
[1722155402213,1.6974249,67558.0,67557.0,0.009163]
[1722155402418,1.84768447,67558.0,67557.0,0.009163]
[1722155402673,1.9342579,67558.0,67557.0,0.009163]
[1722155402828,1.6974249,67558.0,67557.0,0.009163]
[1722155403231,1.9342579,67558.0,67557.0,0.009163]
[1722155403791,1.93392901,67558.0,67557.0,0.009163]
[1722155404001,1.77469549,67558.0,67557.0,0.009163]
[1722155404202,1.69718561,67558.0,67557.0,0.009163]
[1722155404510,1.70592335,67558.0,67557.0,0.009163]
[1722155404686,1.94275635,67558.0,67557.0,0.009163]
[1722155404914,1.70592335,67558.0,67557.0,0.009163]
[1722155405244,1.94275635,67558.0,67557.0,0.009163]
[1722155405898,2.16144369,67558.0,67557.0,0.009163]
[1722155406097,1.94275635,67558.0,67557.0,0.009163]
[1722155406302,2.16144369,67558.0,67557.0,0.009163]
[1722155407271,1.78343323,67558.0,67557.0,0.009163]
[1722155407493,1.94295169,67558.0,67557.0,0.009163]
[1722155411043,1.94295572,67558.0,67557.0,0.009163]